[Event "Early-Titled-Tuesday-Blitz-May-14-2024"]
[Site "Chess.com"]
[Date "2024.05.14"]
[Round "1"]
[White "Dedic8"]
[Black "GM4life"]
[Result "1-0"]
[WhiteElo "2893"]
[BlackElo "2515"]
[TimeControl "180+1"]
[EndTime "8:05:37 PDT"]
[Termination "Dedic8 won by resignation"]

1. d4 {[%clk 0:03:00.9]} 1... Nf6 {[%clk 0:02:59.6]} 2. c4 {[%clk 0:03:01.4]}
2... e6 {[%clk 0:02:59.2]} 3. Nc3 {[%clk 0:03:02.1]} 3... Bb4 {[%clk 0:02:57.8]}
4. e3 {[%clk 0:03:01]} 4... O-O {[%clk 0:02:57.8]} 5. Bd3 {[%clk 0:03:01.7]}
5... d5 {[%clk 0:02:57.9]} 6. a3 {[%clk 0:03:01.9]} 6... Bxc3+ {[%clk
0:02:57.7]} 7. bxc3 {[%clk 0:03:02.8]} 7... dxc4 {[%clk 0:02:57.9]} 8. Bxc4
{[%clk 0:03:03.7]} 8... c5 {[%clk 0:02:58]} 9. Ne2 {[%clk 0:03:04.4]} 9... Qc7
{[%clk 0:02:57.7]} 10. Bd3 {[%clk 0:03:05.1]} 10... Nc6 {[%clk 0:02:54.5]} 11.
O-O {[%clk 0:03:04.5]} 11... e5 {[%clk 0:02:53.8]} 12. Ng3 {[%clk 0:03:04.6]}
12... Rd8 {[%clk 0:02:43.1]} 13. f4 {[%clk 0:03:04.6]} 13... exd4 {[%clk
0:02:39.1]} 14. cxd4 {[%clk 0:03:04.1]} 14... cxd4 {[%clk 0:02:38.5]} 15. e4
{[%clk 0:03:04.5]} 15... Ng4 {[%clk 0:02:37.1]} 16. Qe2 {[%clk 0:03:03.1]} 16...
b6 {[%clk 0:02:03.7]} 17. h3 {[%clk 0:02:54.1]} 17... Ne3 {[%clk 0:02:01.6]} 18.
Bxe3 {[%clk 0:02:54.5]} 18... dxe3 {[%clk 0:02:02.5]} 19. Qxe3 {[%clk 0:02:55]}
19... Bb7 {[%clk 0:01:55.9]} 20. Rad1 {[%clk 0:02:48.6]} 20... Qd6 {[%clk
0:01:50.9]} 21. e5 {[%clk 0:02:47]} 21... Qc5 {[%clk 0:01:02.4]} 22. Qxc5 {[%clk
0:02:46.5]} 22... bxc5 {[%clk 0:01:01.3]} 23. Be4 {[%clk 0:02:46.6]} 23... Rac8
{[%clk 0:00:53.9]} 24. Nf5 {[%clk 0:02:40.2]} 24... Rxd1 {[%clk 0:00:39.1]} 25.
Rxd1 {[%clk 0:02:40.3]} 25... Kf8 {[%clk 0:00:39]} 26. Rd7 {[%clk 0:02:36.3]}
26... Ba8 {[%clk 0:00:23]} 27. Nd6 {[%clk 0:02:35.1]} 27... Rb8 {[%clk 0:00:20]}
28. Rxf7+ {[%clk 0:02:31.3]} 28... Kg8 {[%clk 0:00:20.4]} 29. Bd5 {[%clk
0:02:26.1]} 29... Kh8 {[%clk 0:00:20.4]} 30. Rc7 {[%clk 0:02:23.5]} 30... Nd4
{[%clk 0:00:10]} 31. Bxa8 {[%clk 0:02:08.8]} 31... Rxa8 {[%clk 0:00:10.9]} 32.
Kf2 {[%clk 0:01:55.8]} 32... Ne6 {[%clk 0:00:07.2]} 33. Rf7 {[%clk 0:01:56.4]}
33... Kg8 {[%clk 0:00:06.9]} 34. f5 {[%clk 0:01:54.5]} 34... Ng5 {[%clk
0:00:07.1]} 35. Rc7 {[%clk 0:01:50.9]} 35... Rd8 {[%clk 0:00:03.1]} 36. Ke3
{[%clk 0:01:50.8]} 1-0

[Event "Early-Titled-Tuesday-Blitz-May-14-2024"]
[Site "Chess.com"]
[Date "2024.05.14"]
[Round "1"]
[White "Nikita_Klepikov"]
[Black "Crazy_girl99"]
[Result "0-1"]
[WhiteElo "2329"]
[BlackElo "2651"]
[TimeControl "180+1"]
[EndTime "8:05:38 PDT"]
[Termination "Crazy_girl99 won on time"]

1. e4 {[%clk 0:02:58.5]} 1... e5 {[%clk 0:02:59.6]} 2. Nf3 {[%clk 0:02:58.4]}
2... Nc6 {[%clk 0:03:00.2]} 3. Bb5 {[%clk 0:02:58.6]} 3... a6 {[%clk 0:03:00.4]}
4. Ba4 {[%clk 0:02:58.8]} 4... Nf6 {[%clk 0:03:01.1]} 5. Qe2 {[%clk 0:02:58.7]}
5... b5 {[%clk 0:03:00.3]} 6. Bb3 {[%clk 0:02:58.7]} 6... Bc5 {[%clk 0:03:00.5]}
7. c3 {[%clk 0:02:58.3]} 7... O-O {[%clk 0:02:59.5]} 8. d3 {[%clk 0:02:58.5]}
8... d6 {[%clk 0:02:59.7]} 9. Bg5 {[%clk 0:02:58.6]} 9... Be6 {[%clk 0:02:58]}
10. Nbd2 {[%clk 0:02:51.6]} 10... Qe7 {[%clk 0:02:54.6]} 11. h3 {[%clk
0:02:24.6]} 11... h6 {[%clk 0:02:49.5]} 12. Bh4 {[%clk 0:02:24.1]} 12... g5
{[%clk 0:02:36.6]} 13. Nxg5 {[%clk 0:02:22.5]} 13... hxg5 {[%clk 0:02:35.9]} 14.
Bxg5 {[%clk 0:02:23.4]} 14... Bxb3 {[%clk 0:02:35.9]} 15. axb3 {[%clk
0:02:21.5]} 15... Qe6 {[%clk 0:02:35.9]} 16. f4 {[%clk 0:02:13]} 16... exf4
{[%clk 0:02:31.8]} 17. Rf1 {[%clk 0:01:49]} 17... Be3 {[%clk 0:02:28.8]} 18. g3
{[%clk 0:01:27.6]} 18... Nh7 {[%clk 0:02:20.8]} 19. gxf4 {[%clk 0:01:15.8]}
19... Bxd2+ {[%clk 0:02:19.3]} 20. Qxd2 {[%clk 0:01:07]} 20... Nxg5 {[%clk
0:02:12.1]} 21. Rg1 {[%clk 0:00:51.3]} 21... f6 {[%clk 0:02:10.5]} 22. h4 {[%clk
0:00:38]} 22... d5 {[%clk 0:02:06.6]} 23. fxg5 {[%clk 0:00:20.9]} 23... f5
{[%clk 0:02:05.5]} 24. g6 {[%clk 0:00:11.7]} 24... dxe4 {[%clk 0:02:05.1]} 25.
O-O-O {[%clk 0:00:06.1]} 25... Kg7 {[%clk 0:02:00.1]} 26. h5 {[%clk 0:00:05.7]}
26... Rh8 {[%clk 0:02:00.3]} 27. Qg5 {[%clk 0:00:03.6]} 27... Ne5 {[%clk
0:01:52.9]} 28. Rh1 {[%clk 0:00:03]} 28... Rh6 {[%clk 0:01:51.3]} 29. dxe4
{[%clk 0:00:02]} 29... fxe4 {[%clk 0:01:50.4]} 30. Rd4 {[%clk 0:00:01.8]} 30...
Rf8 {[%clk 0:01:45.9]} 31. Rxe4 {[%clk 0:00:01.9]} 31... Nd3+ {[%clk 0:01:46.1]}
32. Kd2 {[%clk 0:00:01.9]} 32... Qxe4 {[%clk 0:01:46.2]} 0-1

[Event "Early-Titled-Tuesday-Blitz-May-14-2024"]
[Site "Chess.com"]
[Date "2024.05.14"]
[Round "1"]
[White "Sanyura"]
[Black "Malikova777"]
[Result "1-0"]
[WhiteElo "2644"]
[BlackElo "2320"]
[TimeControl "180+1"]
[EndTime "8:05:38 PDT"]
[Termination "Sanyura won by resignation"]

1. Nf3 {[%clk 0:02:52.7]} 1... Nf6 {[%clk 0:02:55.2]} 2. g3 {[%clk 0:02:52.8]}
2... g6 {[%clk 0:02:55.5]} 3. Bg2 {[%clk 0:02:53.7]} 3... Bg7 {[%clk 0:02:56.1]}
4. O-O {[%clk 0:02:54.6]} 4... O-O {[%clk 0:02:56.7]} 5. d3 {[%clk 0:02:55.5]}
5... d6 {[%clk 0:02:57.1]} 6. Nbd2 {[%clk 0:02:56.4]} 6... e5 {[%clk 0:02:57.5]}
7. e4 {[%clk 0:02:57.3]} 7... c5 {[%clk 0:02:57.1]} 8. Nh4 {[%clk 0:02:57.5]}
8... Nc6 {[%clk 0:02:53.6]} 9. f4 {[%clk 0:02:57.7]} 9... Bg4 {[%clk 0:02:53.7]}
10. Ndf3 {[%clk 0:02:57]} 10... Nd4 {[%clk 0:02:53]} 11. c3 {[%clk 0:02:56.5]}
11... Nxf3+ {[%clk 0:02:48.7]} 12. Nxf3 {[%clk 0:02:57.4]} 12... Nh5 {[%clk
0:02:43]} 13. h3 {[%clk 0:02:47.2]} 13... Bxf3 {[%clk 0:02:25.2]} 14. Qxf3
{[%clk 0:02:48.1]} 14... exf4 {[%clk 0:02:22.8]} 15. g4 {[%clk 0:02:41.8]} 15...
Ng3 {[%clk 0:02:14.4]} 16. Bxf4 {[%clk 0:02:37.8]} 16... Nxf1 {[%clk 0:02:13.2]}
17. Rxf1 {[%clk 0:02:38.7]} 17... Qd7 {[%clk 0:02:05.1]} 18. h4 {[%clk 0:02:31]}
18... Rae8 {[%clk 0:02:03.2]} 19. h5 {[%clk 0:02:30.9]} 19... f5 {[%clk
0:02:02.7]} 20. hxg6 {[%clk 0:02:30]} 20... hxg6 {[%clk 0:02:03.6]} 21. gxf5
{[%clk 0:02:30.5]} 21... gxf5 {[%clk 0:02:04.1]} 22. Bh3 {[%clk 0:02:30.2]}
22... Qe7 {[%clk 0:01:49.1]} 23. Bxf5 {[%clk 0:02:23.4]} 23... d5 {[%clk
0:01:46.4]} 24. Qh5 {[%clk 0:02:19.9]} 24... Bf6 {[%clk 0:01:29.3]} 25. Rf2
{[%clk 0:01:49.7]} 25... Rf7 {[%clk 0:01:27.2]} 26. Rg2+ {[%clk 0:01:39.8]}
26... Rg7 {[%clk 0:01:15.5]} 27. Qh7+ {[%clk 0:01:31.4]} 27... Kf8 {[%clk
0:01:06.6]} 28. Bh6 {[%clk 0:01:28.7]} 28... Qf7 {[%clk 0:00:38.4]} 29. Bxg7+
{[%clk 0:01:28]} 29... Bxg7 {[%clk 0:00:37.6]} 30. Bg6 {[%clk 0:01:27.9]} 30...
Qf4 {[%clk 0:00:15.2]} 31. Rf2 {[%clk 0:01:26.3]} 1-0

[Event "Early-Titled-Tuesday-Blitz-May-14-2024"]
[Site "Chess.com"]
[Date "2024.05.14"]
[Round "1"]
[White "Susal_De_Silva"]
[Black "margarita_2703"]
[Result "1-0"]
[WhiteElo "2667"]
[BlackElo "2353"]
[TimeControl "180+1"]
[EndTime "8:05:40 PDT"]
[Termination "Susal_De_Silva won by resignation"]

1. Nf3 {[%clk 0:03:00.9]} 1... d5 {[%clk 0:02:58.7]} 2. e3 {[%clk 0:03:00.8]}
2... Nf6 {[%clk 0:02:25.4]} 3. c4 {[%clk 0:02:58.8]} 3... c6 {[%clk 0:02:25.3]}
4. Nc3 {[%clk 0:02:58.4]} 4... Bg4 {[%clk 0:02:22.5]} 5. Qb3 {[%clk 0:02:57]}
5... dxc4 {[%clk 0:02:14.6]} 6. Qxb7 {[%clk 0:02:55.6]} 6... Bxf3 {[%clk
0:02:11.9]} 7. Qxa8 {[%clk 0:02:52.5]} 7... Qc7 {[%clk 0:02:03.5]} 8. gxf3
{[%clk 0:02:47.4]} 8... Nd7 {[%clk 0:02:03.7]} 9. Nd5 {[%clk 0:02:29.7]} 9...
cxd5 {[%clk 0:01:51.1]} 10. Qxd5 {[%clk 0:02:30.6]} 10... Nb6 {[%clk 0:01:51.4]}
11. Qb5+ {[%clk 0:02:29.7]} 11... N8d7 {[%clk 0:01:51.5]} 12. b3 {[%clk
0:02:26.9]} 12... cxb3 {[%clk 0:01:51.3]} 13. axb3 {[%clk 0:02:26.7]} 13... e5
{[%clk 0:01:50.6]} 14. Bb2 {[%clk 0:02:23.9]} 14... Bd6 {[%clk 0:01:49.7]} 15.
Rc1 {[%clk 0:02:23.1]} 15... Qb7 {[%clk 0:01:50]} 16. Bg2 {[%clk 0:02:04.2]}
16... O-O {[%clk 0:01:48.2]} 17. O-O {[%clk 0:02:02.3]} 17... Qb8 {[%clk
0:01:15.1]} 18. Rc6 {[%clk 0:02:01.3]} 18... Re8 {[%clk 0:01:08.1]} 19. Rfc1
{[%clk 0:01:59]} 19... Bf8 {[%clk 0:01:06.1]} 20. d4 {[%clk 0:01:57.4]} 20...
exd4 {[%clk 0:01:05]} 21. Bxd4 {[%clk 0:01:58.3]} 21... Qd8 {[%clk 0:01:01]} 22.
f4 {[%clk 0:01:53.8]} 22... Nb8 {[%clk 0:00:55.3]} 23. R6c2 {[%clk 0:01:32]}
23... N8d7 {[%clk 0:00:54.8]} 24. Bc6 {[%clk 0:01:30.1]} 24... Re6 {[%clk
0:00:53.7]} 25. Bxd7 {[%clk 0:01:26]} 25... Nxd7 {[%clk 0:00:52]} 26. Rc8 {[%clk
0:01:25.6]} 26... Rg6+ {[%clk 0:00:51.6]} 27. Kf1 {[%clk 0:01:24.9]} 27... Qe7
{[%clk 0:00:44.6]} 28. Bc5 {[%clk 0:01:17.4]} 28... Nxc5 {[%clk 0:00:43.5]} 29.
Qxc5 {[%clk 0:01:14.7]} 29... Qxc5 {[%clk 0:00:42.1]} 30. R1xc5 {[%clk
0:01:15.6]} 30... Rb6 {[%clk 0:00:40.7]} 31. Rd5 {[%clk 0:01:13.9]} 1-0

[Event "Early-Titled-Tuesday-Blitz-May-14-2024"]
[Site "Chess.com"]
[Date "2024.05.14"]
[Round "1"]
[White "ab-lsv"]
[Black "crazy_but_lazy"]
[Result "0-1"]
[WhiteElo "2360"]
[BlackElo "2676"]
[TimeControl "180+1"]
[EndTime "8:05:41 PDT"]
[Termination "crazy_but_lazy won by resignation"]

1. d4 {[%clk 0:02:59.4]} 1... d5 {[%clk 0:02:58.6]} 2. c4 {[%clk 0:02:59.7]}
2... c6 {[%clk 0:02:58.9]} 3. Nc3 {[%clk 0:03:00]} 3... Nf6 {[%clk 0:02:58.7]}
4. e3 {[%clk 0:03:00.4]} 4... e6 {[%clk 0:02:58.3]} 5. Nf3 {[%clk 0:03:00.2]}
5... Nbd7 {[%clk 0:02:57.1]} 6. Be2 {[%clk 0:03:00.4]} 6... b6 {[%clk
0:02:57.7]} 7. O-O {[%clk 0:02:59.4]} 7... Bb7 {[%clk 0:02:58.3]} 8. b3 {[%clk
0:02:59.4]} 8... Bd6 {[%clk 0:02:58.4]} 9. Bb2 {[%clk 0:02:59]} 9... O-O {[%clk
0:02:58.3]} 10. Bd3 {[%clk 0:02:59]} 10... Qe7 {[%clk 0:02:54.8]} 11. Re1 {[%clk
0:02:56.1]} 11... Rad8 {[%clk 0:02:45.9]} 12. Qc2 {[%clk 0:02:53.3]} 12... c5
{[%clk 0:02:46.1]} 13. cxd5 {[%clk 0:02:47.3]} 13... exd5 {[%clk 0:02:46.3]} 14.
e4 {[%clk 0:02:37]} 14... cxd4 {[%clk 0:02:09.8]} 15. Nxd4 {[%clk 0:02:37.9]}
15... Qe5 {[%clk 0:01:31.9]} 16. Nf3 {[%clk 0:02:35.1]} 16... Qh5 {[%clk
0:01:32.1]} 17. exd5 {[%clk 0:01:23.4]} 17... Nxd5 {[%clk 0:01:31.8]} 18. Nxd5
{[%clk 0:01:23.3]} 18... Bxd5 {[%clk 0:01:32.7]} 19. Be4 {[%clk 0:01:20.2]}
19... Be6 {[%clk 0:00:44.9]} 20. Rad1 {[%clk 0:01:17.9]} 20... Nc5 {[%clk
0:00:42.2]} 21. Bd5 {[%clk 0:00:59.4]} 21... Bxd5 {[%clk 0:00:34.7]} 22. Rxd5
{[%clk 0:00:56.1]} 22... Qxd5 {[%clk 0:00:32.1]} 0-1

[Event "Early-Titled-Tuesday-Blitz-May-14-2024"]
[Site "Chess.com"]
[Date "2024.05.14"]
[Round "1"]
[White "Kushch_Nikolai"]
[Black "NMJeevanK"]
[Result "0-1"]
[WhiteElo "2424"]
[BlackElo "2756"]
[TimeControl "180+1"]
[EndTime "8:05:43 PDT"]
[Termination "NMJeevanK won by resignation"]

1. Nf3 {[%clk 0:02:59.3]} 1... Nf6 {[%clk 0:02:58.6]} 2. c4 {[%clk 0:02:58.3]}
2... d6 {[%clk 0:02:55.5]} 3. d4 {[%clk 0:02:57.4]} 3... g6 {[%clk 0:02:55.7]}
4. g3 {[%clk 0:02:57.3]} 4... Bg7 {[%clk 0:02:56.3]} 5. Bg2 {[%clk 0:02:57.7]}
5... O-O {[%clk 0:02:57.1]} 6. O-O {[%clk 0:02:57.8]} 6... c6 {[%clk 0:02:57.2]}
7. Nc3 {[%clk 0:02:57.1]} 7... Bf5 {[%clk 0:02:57.8]} 8. Nh4 {[%clk 0:02:56]}
8... Be6 {[%clk 0:02:57.7]} 9. b3 {[%clk 0:02:53.2]} 9... d5 {[%clk 0:02:57.2]}
10. cxd5 {[%clk 0:02:43.8]} 10... cxd5 {[%clk 0:02:56.1]} 11. Bb2 {[%clk
0:02:40.8]} 11... Nc6 {[%clk 0:02:54.7]} 12. Rc1 {[%clk 0:02:38.2]} 12... Rc8
{[%clk 0:02:47.5]} 13. Nf3 {[%clk 0:02:37.9]} 13... Qd7 {[%clk 0:02:41.8]} 14.
Na4 {[%clk 0:02:35.3]} 14... b6 {[%clk 0:02:38.1]} 15. Ne5 {[%clk 0:02:29.2]}
15... Nxe5 {[%clk 0:02:35.4]} 16. dxe5 {[%clk 0:02:29]} 16... Ng4 {[%clk
0:02:29.7]} 17. Nc3 {[%clk 0:01:58]} 17... Bxe5 {[%clk 0:02:20.9]} 18. h3 {[%clk
0:01:49.9]} 18... Nf6 {[%clk 0:02:19.8]} 19. f4 {[%clk 0:01:47.6]} 19... Bxc3
{[%clk 0:02:19.3]} 20. Bxc3 {[%clk 0:01:46.9]} 20... Bxh3 {[%clk 0:02:19.5]} 21.
Bxf6 {[%clk 0:01:44.6]} 21... Bxg2 {[%clk 0:02:13]} 22. Kxg2 {[%clk 0:01:38.1]}
22... exf6 {[%clk 0:02:13.4]} 23. Qd4 {[%clk 0:01:38.2]} 23... Qe6 {[%clk
0:02:10.6]} 24. e3 {[%clk 0:01:26.4]} 24... Rxc1 {[%clk 0:02:03]} 25. Rxc1
{[%clk 0:01:25.6]} 25... Re8 {[%clk 0:02:03.8]} 26. Rc3 {[%clk 0:01:22]} 26...
Qf5 {[%clk 0:01:59.7]} 27. Rd3 {[%clk 0:01:19]} 27... Rd8 {[%clk 0:01:49.6]} 28.
e4 {[%clk 0:01:17.2]} 28... Qg4 {[%clk 0:01:41.8]} 29. Rd2 {[%clk 0:01:15.1]}
29... h5 {[%clk 0:01:38.7]} 30. Qxf6 {[%clk 0:01:12.3]} 30... Re8 {[%clk
0:01:33.7]} 31. e5 {[%clk 0:01:11.3]} 31... d4 {[%clk 0:01:22.1]} 32. Qd6 {[%clk
0:01:09]} 32... h4 {[%clk 0:01:20]} 33. Qxd4 {[%clk 0:00:54.3]} 33... Qxg3+
{[%clk 0:01:18.9]} 34. Kh1 {[%clk 0:00:53.4]} 34... Rc8 {[%clk 0:01:14.1]} 35.
Rd1 {[%clk 0:00:40]} 35... Rc2 {[%clk 0:01:09]} 0-1

[Event "Early-Titled-Tuesday-Blitz-May-14-2024"]
[Site "Chess.com"]
[Date "2024.05.14"]
[Round "1"]
[White "Flameboard08"]
[Black "KorolDimitriy75"]
[Result "1-0"]
[WhiteElo "2733"]
[BlackElo "2408"]
[TimeControl "180+1"]
[EndTime "8:05:55 PDT"]
[Termination "Flameboard08 won on time"]

1. f4 {[%clk 0:03:00.9]} 1... c5 {[%clk 0:02:59.8]} 2. e4 {[%clk 0:02:59.6]}
2... g6 {[%clk 0:02:59.9]} 3. Nf3 {[%clk 0:02:59]} 3... Bg7 {[%clk 0:03:00.1]}
4. c3 {[%clk 0:02:58.8]} 4... d5 {[%clk 0:02:54.1]} 5. e5 {[%clk 0:02:58.8]}
5... Nc6 {[%clk 0:02:43.2]} 6. d4 {[%clk 0:02:57.7]} 6... Qb6 {[%clk 0:02:32.9]}
7. h3 {[%clk 0:02:44]} 7... Bf5 {[%clk 0:02:18.6]} 8. Bd3 {[%clk 0:02:38.5]}
8... Nh6 {[%clk 0:01:34]} 9. g4 {[%clk 0:02:31.9]} 9... Bxd3 {[%clk 0:01:32.4]}
10. Qxd3 {[%clk 0:02:32.8]} 10... O-O {[%clk 0:01:09.5]} 11. dxc5 {[%clk
0:02:28.6]} 11... Qxc5 {[%clk 0:01:10.4]} 12. Be3 {[%clk 0:02:28.5]} 12... Qa5
{[%clk 0:01:07.3]} 13. Nbd2 {[%clk 0:02:25.9]} 13... Rad8 {[%clk 0:00:57.5]} 14.
Nb3 {[%clk 0:02:23.9]} 14... Qc7 {[%clk 0:00:51.7]} 15. O-O-O {[%clk 0:02:15.3]}
15... f6 {[%clk 0:00:43.7]} 16. exf6 {[%clk 0:02:12.9]} 16... exf6 {[%clk
0:00:44.6]} 17. Nfd4 {[%clk 0:02:09.2]} 17... Rfe8 {[%clk 0:00:41.5]} 18. Rhf1
{[%clk 0:02:05.5]} 18... a5 {[%clk 0:00:19.3]} 19. a4 {[%clk 0:01:59.6]} 19...
Qc8 {[%clk 0:00:16.4]} 20. Kb1 {[%clk 0:01:57.2]} 20... f5 {[%clk 0:00:15.6]}
21. g5 {[%clk 0:01:53.8]} 21... Nf7 {[%clk 0:00:15.4]} 22. Nxc6 {[%clk
0:01:51.4]} 22... bxc6 {[%clk 0:00:14]} 23. Nxa5 {[%clk 0:01:42.1]} 23... Nd6
{[%clk 0:00:13.3]} 24. Bb6 {[%clk 0:01:35.1]} 24... Rd7 {[%clk 0:00:12.8]} 25.
Rfe1 {[%clk 0:01:34.3]} 25... Ne4 {[%clk 0:00:13.2]} 26. Nb3 {[%clk 0:01:28]}
26... c5 {[%clk 0:00:13]} 27. Qb5 {[%clk 0:01:23.6]} 27... Rb7 {[%clk
0:00:10.8]} 28. Nxc5 {[%clk 0:01:19.1]} 28... Nxc5 {[%clk 0:00:10.2]} 29. Rxe8+
{[%clk 0:01:18]} 1-0

[Event "Early-Titled-Tuesday-Blitz-May-14-2024"]
[Site "Chess.com"]
[Date "2024.05.14"]
[Round "1"]
[White "ChessboArt"]
[Black "Kazmin_Semyon"]
[Result "0-1"]
[WhiteElo "2249"]
[BlackElo "2602"]
[TimeControl "180+1"]
[EndTime "8:05:55 PDT"]
[Termination "Kazmin_Semyon won by resignation"]

1. Nf3 {[%clk 0:02:58.9]} 1... Nf6 {[%clk 0:02:47.3]} 2. g3 {[%clk 0:02:58.4]}
2... g6 {[%clk 0:02:47.9]} 3. b3 {[%clk 0:02:58.2]} 3... Bg7 {[%clk 0:02:46.6]}
4. Bb2 {[%clk 0:02:59.1]} 4... c5 {[%clk 0:02:46.8]} 5. c4 {[%clk 0:02:58.7]}
5... Nc6 {[%clk 0:02:47.2]} 6. Bg2 {[%clk 0:02:59.3]} 6... O-O {[%clk
0:02:46.1]} 7. O-O {[%clk 0:02:59.4]} 7... d5 {[%clk 0:02:45.2]} 8. cxd5 {[%clk
0:03:00.3]} 8... Nxd5 {[%clk 0:02:45.6]} 9. Bxg7 {[%clk 0:03:00.3]} 9... Kxg7
{[%clk 0:02:46.5]} 10. d4 {[%clk 0:02:58.3]} 10... cxd4 {[%clk 0:02:39.8]} 11.
Nxd4 {[%clk 0:02:54.2]} 11... e5 {[%clk 0:02:40.5]} 12. Nxc6 {[%clk 0:02:14.3]}
12... bxc6 {[%clk 0:02:41.4]} 13. Qc2 {[%clk 0:02:14.3]} 13... Bb7 {[%clk
0:02:39]} 14. Nd2 {[%clk 0:02:06]} 14... f5 {[%clk 0:02:27.1]} 15. e4 {[%clk
0:01:57.8]} 15... Nb4 {[%clk 0:02:20.9]} 16. Qc3 {[%clk 0:01:57.6]} 16... Qd4
{[%clk 0:02:20.4]} 17. Rac1 {[%clk 0:01:36.9]} 17... Rfd8 {[%clk 0:02:15.5]} 18.
Nc4 {[%clk 0:01:31.9]} 18... Nxa2 {[%clk 0:02:10.2]} 19. Qxd4 {[%clk 0:01:27.5]}
19... exd4 {[%clk 0:02:11.1]} 20. Ra1 {[%clk 0:01:16.7]} 20... Nc3 {[%clk
0:02:00]} 21. exf5 {[%clk 0:01:12.7]} 21... gxf5 {[%clk 0:01:52.1]} 22. Ne5
{[%clk 0:00:47.9]} 22... Rd6 {[%clk 0:01:38.6]} 23. Nd3 {[%clk 0:00:43.7]} 23...
a5 {[%clk 0:01:37.3]} 24. Rfe1 {[%clk 0:00:43.2]} 24... Ba6 {[%clk 0:01:36.5]}
25. Nc5 {[%clk 0:00:40.9]} 25... d3 {[%clk 0:01:36.1]} 26. Bf3 {[%clk
0:00:14.3]} 26... d2 {[%clk 0:01:34.6]} 27. Red1 {[%clk 0:00:14.6]} 27... Nxd1
{[%clk 0:01:34.4]} 28. Rxd1 {[%clk 0:00:14.3]} 28... Bb5 {[%clk 0:01:33.7]} 29.
Kg2 {[%clk 0:00:11.6]} 29... a4 {[%clk 0:01:33.6]} 30. bxa4 {[%clk 0:00:11.4]}
30... Bxa4 {[%clk 0:01:30.8]} 31. Nxa4 {[%clk 0:00:08.8]} 31... Rxa4 {[%clk
0:01:31.7]} 32. Kf1 {[%clk 0:00:08.8]} 32... c5 {[%clk 0:01:30.5]} 33. Ke2
{[%clk 0:00:09.1]} 33... Ra2 {[%clk 0:01:31.1]} 34. Bh5 {[%clk 0:00:04.3]} 34...
c4 {[%clk 0:01:31.2]} 35. Rb1 {[%clk 0:00:03.2]} 35... c3 {[%clk 0:01:31.2]} 0-1

[Event "Early-Titled-Tuesday-Blitz-May-14-2024"]
[Site "Chess.com"]
[Date "2024.05.14"]
[Round "1"]
[White "Real_taiatai"]
[Black "Kirill_Klukin"]
[Result "0-1"]
[WhiteElo "2475"]
[BlackElo "2827"]
[TimeControl "180+1"]
[EndTime "8:05:56 PDT"]
[Termination "Kirill_Klukin won by resignation"]

1. d4 {[%clk 0:03:00.7]} 1... Nf6 {[%clk 0:02:59.6]} 2. Nf3 {[%clk 0:03:01.4]}
2... e6 {[%clk 0:02:59.6]} 3. Bg5 {[%clk 0:03:00.4]} 3... c5 {[%clk 0:02:53.9]}
4. c3 {[%clk 0:02:59.9]} 4... Be7 {[%clk 0:02:51.3]} 5. Nbd2 {[%clk 0:02:59.8]}
5... b6 {[%clk 0:02:49.1]} 6. e4 {[%clk 0:02:58.9]} 6... Bb7 {[%clk 0:02:39.5]}
7. Bd3 {[%clk 0:02:58.5]} 7... h6 {[%clk 0:02:27.5]} 8. Bh4 {[%clk 0:02:52.8]}
8... d6 {[%clk 0:02:10.8]} 9. O-O {[%clk 0:02:50.6]} 9... Nbd7 {[%clk
0:02:10.9]} 10. Re1 {[%clk 0:02:49.9]} 10... O-O {[%clk 0:02:08]} 11. Qe2 {[%clk
0:02:32.9]} 11... Nh5 {[%clk 0:02:06]} 12. Bxe7 {[%clk 0:02:32.7]} 12... Qxe7
{[%clk 0:02:06.4]} 13. g3 {[%clk 0:02:31.8]} 13... cxd4 {[%clk 0:01:45.9]} 14.
cxd4 {[%clk 0:02:28.6]} 14... Rfc8 {[%clk 0:01:46.1]} 15. Rac1 {[%clk
0:02:25.8]} 15... e5 {[%clk 0:01:39.8]} 16. d5 {[%clk 0:02:23]} 16... Nhf6
{[%clk 0:01:37.4]} 17. Ba6 {[%clk 0:02:15.9]} 17... Bxa6 {[%clk 0:01:29]} 18.
Qxa6 {[%clk 0:02:16.8]} 18... Nc5 {[%clk 0:01:29.7]} 19. Qe2 {[%clk 0:02:08.7]}
19... Qd7 {[%clk 0:01:20.9]} 20. b4 {[%clk 0:01:55.5]} 20... Na4 {[%clk
0:01:20.3]} 21. Nh4 {[%clk 0:01:53.5]} 21... Rc7 {[%clk 0:00:53.4]} 22. Nf5
{[%clk 0:01:40.2]} 22... Rac8 {[%clk 0:00:50.3]} 23. Rxc7 {[%clk 0:01:38.3]}
23... Rxc7 {[%clk 0:00:51.2]} 24. Nc4 {[%clk 0:01:29.7]} 24... Nc3 {[%clk
0:00:35]} 25. Qd3 {[%clk 0:01:27.6]} 25... Ncxe4 {[%clk 0:00:29.7]} 26. Rxe4
{[%clk 0:01:14.2]} 26... Qxf5 {[%clk 0:00:29.2]} 27. Nxd6 {[%clk 0:01:14.6]}
27... Qd7 {[%clk 0:00:29.3]} 28. Nf5 {[%clk 0:01:00]} 28... Qxf5 {[%clk
0:00:25.6]} 29. d6 {[%clk 0:01:00]} 29... Rc1+ {[%clk 0:00:24.4]} 30. Kg2 {[%clk
0:00:59]} 30... Qxe4+ {[%clk 0:00:24.8]} 31. Qxe4 {[%clk 0:00:59.2]} 31... Nxe4
{[%clk 0:00:25.7]} 32. d7 {[%clk 0:00:59.7]} 32... Rd1 {[%clk 0:00:26.4]} 0-1